bitfinex/quotes_SOLUSD_20241005
["timestamp","ask_amount","ask_price","bid_price","bid_amount"]
[1728110770456,6.9165,144.58,144.54,6.9181]
[1728110770763,0.8623614,144.59,144.55,30.0]
[1728110770962,6.9167,144.58,144.55,30.0]
[1728110771573,0.8623614,144.59,144.53,24.2156]
[1728110771574,6.9171,144.57,144.53,24.2156]
[1728110771780,6.9171,144.57,144.53,17.2968]
[1728110773549,6.9171,144.57,144.53,24.2157]
[1728110774356,0.8623614,144.59,144.53,24.2157]
[1728110774357,6.9166,144.58,144.54,9.143232]
[1728110774566,6.9166,144.58,144.54,16.061532]
[1728110774875,7.7784614,144.59,144.55,14.67769869]
[1728110775081,7.7784614,144.59,144.56,1.38328759]
[1728110775270,0.8623614,144.59,144.56,9.14308628]
[1728110775575,0.8623614,144.59,144.56,0.25098]
[1728110775783,0.8623614,144.59,144.56,14.92787869]
[1728110775983,0.8623614,144.59,144.57,1.38304604]
[1728110776156,0.8623614,144.59,144.57,1.38306207]
[1728110776669,0.8623614,144.59,144.57,8.29996207]
[1728110777482,0.8623614,144.59,144.57,1.38306207]
[1728110777784,0.8623614,144.59,144.58,6.9165]
[1728110779785,0.8623614,144.59,144.58,14.67629869]
[1728110780885,0.8623614,144.59,144.58,44.67629869]
[1728110781681,0.8623614,144.59,144.58,14.67629869]
[1728110782977,0.8623614,144.59,144.58,6.9165]
[1728110783174,0.8623614,144.59,144.57,7.75979869]
[1728110783392,0.8623614,144.59,144.57,14.67649869]
[1728110783961,0.8623614,144.59,144.58,6.9165]
[1728110784388,0.8623614,144.59,144.58,8.29948395]
[1728110784589,0.8623614,144.59,144.58,6.9165]
[1728110784969,0.8623614,144.59,144.57,6.9169]
[1728110787681,0.8623614,144.59,144.58,1.38309665]
[1728110788088,0.8623614,144.59,144.57,6.9169]
[1728110788282,0.8623614,144.59,144.55,17.2944]
[1728110789002,6.9167,144.58,144.52,41.65519869]
[1728110789293,6.9167,144.58,144.54,6.9184]
[1728110789469,7.7785614,144.59,144.54,6.9184]
[1728110791597,7.7785614,144.59,144.55,1.38335862]
[1728110791774,7.7785614,144.59,144.54,6.9184]
[1728110794795,7.7785614,144.59,144.55,1.38335564]
[1728110795394,7.7785614,144.59,144.54,6.9184]
[1728110796082,7.7785614,144.59,144.55,1.3833548]
[1728110796881,7.7785614,144.59,144.54,6.9184]
[1728110797085,7.7785614,144.59,144.55,1.38335411]
[1728110798881,7.7785614,144.59,144.54,6.9184]
[1728110800908,7.7785614,144.59,144.55,1.38335106]
[1728110801299,7.7785614,144.59,144.54,6.9184]
[1728110802480,7.7785614,144.59,144.55,1.38336093]
[1728110803187,0.8623614,144.59,144.55,1.38336093]
[1728110803396,0.8623614,144.59,144.55,8.30096093]
[1728110805695,0.8623614,144.59,144.56,6.9173]
[1728110805906,0.8623614,144.59,144.57,1.38319582]
[1728110806804,0.8623614,144.59,144.56,6.9173]
[1728110807000,0.8623614,144.59,144.57,1.38319448]
[1728110807198,0.8623614,144.59,144.57,8.30019448]
[1728110807510,0.8623614,144.59,144.57,1.38319448]
[1728110807697,0.8623614,144.59,144.58,6.9165]
[1728110811519,0.8623614,144.59,144.56,24.2105]
[1728110812512,0.8623614,144.59,144.57,1.38318345]
[1728110812714,0.8623614,144.59,144.56,24.2105]
[1728110818415,0.8623614,144.59,144.54,6.9181]
[1728110818416,7.7784614,144.59,144.54,6.9181]
[1728110818616,7.7784614,144.59,144.54,10.88529454]
[1728110819712,7.7784614,144.59,144.54,6.9181]
[1728110819912,7.7784614,144.59,144.54,10.88586938]
[1728110821511,7.7784614,144.59,144.55,8.3012354]
[1728110821694,7.7784614,144.59,144.55,6.9179]
[1728110822106,0.8623614,144.59,144.55,6.9179]
[1728110822314,0.8623614,144.59,144.56,1.38329326]
[1728110822697,0.8623614,144.59,144.56,8.30039326]
[1728110823100,0.8623614,144.59,144.56,6.9171]
[1728110823617,0.8623614,144.59,144.57,1.38317676]
[1728110824796,0.8623614,144.59,144.56,6.9171]
[1728110825191,0.8623614,144.59,144.56,10.88370951]
[1728110825393,0.8623614,144.59,144.58,6.9165]
[1728110825637,0.8623614,144.59,144.58,14.67629869]
[1728110825790,0.8623614,144.59,144.58,18.64087098]
[1728110826115,0.8623614,144.59,144.58,18.89185098]
[1728110826418,0.8623614,144.59,144.58,18.64087098]
[1728110828025,0.8623614,144.59,144.58,20.02373883]
[1728110828595,0.8623614,144.59,144.58,16.05916654]
[1728110828894,0.8623614,144.59,144.58,20.01761086]
[1728110830104,0.8623614,144.59,144.58,50.01761086]
[1728110831294,0.8623614,144.59,144.58,50.26859086]
[1728110832222,0.8623614,144.59,144.58,48.88572301]
[1728110832512,0.8623614,144.59,144.58,48.88043742]
[1728110832895,0.8623614,144.59,144.58,48.62945742]
[1728110833300,0.8623614,144.59,144.58,44.67629869]
[1728110836290,0.8623614,144.59,144.58,46.31013393]
[1728110837917,0.8623614,144.59,144.58,44.92727869]
[1728110839013,0.8623614,144.59,144.58,46.31006704]
[1728110839320,0.8623614,144.59,144.58,44.92727869]
[1728110840920,0.8623614,144.59,144.58,44.67629869]
[1728110841522,0.8623614,144.59,144.58,46.0591327]
[1728110842801,0.8623614,144.59,144.58,46.3101127]
[1728110843916,0.8623614,144.59,144.58,44.92727869]
[1728110844125,0.8623614,144.59,144.58,70.08694859]
[1728110844299,0.8623614,144.59,144.58,40.08694859]
[1728110844626,0.8623614,144.59,144.58,38.70416269]
[1728110844810,0.8623614,144.59,144.58,42.65005737]
[1728110845323,0.8623614,144.59,144.58,42.65017427]
[1728110845524,0.8623614,144.59,144.58,44.03276976]
[1728110845719,0.8623614,144.59,144.58,42.65017427]
[1728110845934,0.8623614,144.59,144.58,44.03273889]
[1728110846510,0.8623614,144.59,144.58,74.03273889]
[1728110846847,0.8623614,144.59,144.58,74.0327338]
[1728110847006,0.8623614,144.59,144.58,72.65017427]
[1728110849332,0.8623614,144.59,144.58,48.87329027]
[1728110849506,0.8623614,144.59,144.58,44.92727869]
[1728110850135,0.8623614,144.59,144.58,48.87444393]
[1728110851426,0.8623614,144.59,144.58,50.25711789]
[1728110851633,0.8623614,144.59,144.58,46.30995265]
[1728110852004,0.8623614,144.59,144.58,70.08683665]
[1728110852507,0.8623614,144.59,144.58,74.03433859]
[1728110852807,0.8623614,144.59,144.58,72.65166463]
[1728110860225,0.8623614,144.59,144.58,48.87478063]
[1728110861116,0.8623614,144.59,144.58,50.25745446]
[1728110861619,0.8623614,144.59,144.58,48.87478063]
[1728110861830,0.8623614,144.59,144.58,41.11498194]
[1728110862022,0.8623614,144.59,144.58,48.87478063]
[1728110862229,0.8623614,144.59,144.58,50.2615074]
[1728110864139,0.8623614,144.59,144.58,48.87883596]
[1728110864440,0.8623614,144.59,144.58,50.26150876]
[1728110865234,0.8623614,144.59,144.58,54.21466783]
[1728110865529,0.8623614,144.59,144.58,50.26311056]
[1728110868454,0.8623614,144.59,144.58,46.30995149]
[1728110868930,0.8623614,144.59,144.58,50.26765615]
[1728110869131,0.8623614,144.59,144.58,20.26765615]
[1728110869510,0.8623614,144.59,144.58,42.66186735]
[1728110872136,0.8623614,144.59,144.58,76.62645294]
[1728110872440,0.8623614,144.59,144.58,72.66874828]
[1728110872612,0.8623614,144.59,144.58,74.05136547]
[1728110873227,0.8623614,144.59,144.58,74.0513474]
[1728110873423,0.8623614,144.59,144.58,72.66873021]
[1728110875238,0.8623614,144.59,144.58,72.66874648]
[1728110876436,0.8623614,144.59,144.58,48.89186248]
[1728110878319,0.8623614,144.59,144.58,44.92727869]
[1728110878518,0.8623614,144.59,144.58,48.89277527]
[1728110878719,0.8623614,144.59,144.58,18.89277527]
[1728110880330,0.8623614,144.59,144.58,10.88199658]
[1728110880523,0.8623614,144.59,144.58,3.96549658]
[1728110880740,16.0509614,144.59,144.58,3.96549658]
[1728110881436,24.05000477,144.59,144.58,3.96549658]
[1728110881642,30.65090477,144.59,144.58,3.96549658]
[1728110881822,29.5679614,144.59,144.58,3.96549658]
[1728110882023,6.9166,144.58,144.53,10.88519809]
[1728110882222,6.9166,144.58,144.54,5.34979466]
[1728110882542,6.9166,144.58,144.55,3.96639809]
[1728110882838,22.6518614,144.59,144.56,5.3497892]
[1728110883044,16.0509614,144.59,144.58,6.9165]
[1728110883338,16.0509614,144.59,144.58,12.26402902]
[1728110884426,16.0509614,144.59,144.58,8.29960315]
[1728110884620,16.0509614,144.59,144.58,6.9165]
[1728110884933,16.0509614,144.59,144.57,6.917]
[1728110885117,16.0509614,144.59,144.57,10.88142587]
[1728110886349,16.0509614,144.59,144.57,6.917]
[1728110888039,16.0509614,144.59,144.56,18.64162456]
[1728110888256,16.0509614,144.59,144.57,1.38315928]
[1728110888835,16.0509614,144.59,144.56,18.64162456]
[1728110889037,16.0509614,144.59,144.56,10.88182587]
[1728110889236,16.0509614,144.59,144.57,1.38316796]
[1728110889548,16.0509614,144.59,144.56,10.88182587]
[1728110890356,16.0509614,144.59,144.56,10.87612859]
[1728110891747,16.0509614,144.59,144.57,1.38316146]
[1728110892953,16.0509614,144.59,144.56,10.87612859]
[1728110893653,16.0509614,144.59,144.56,6.9174]
[1728110893952,16.0509614,144.59,144.56,10.87461861]
[1728110894323,16.0509614,144.59,144.56,6.9174]
[1728110895351,16.0509614,144.59,144.55,31.97169869]
[1728110895750,16.0509614,144.59,144.55,24.2119]
[1728110896132,22.9671614,144.59,144.55,24.2119]
[1728110897040,22.9671614,144.59,144.55,17.294]
[1728110904557,22.9671614,144.59,144.55,18.67737047]
[1728110904848,22.9671614,144.59,144.55,17.294]
[1728110905241,6.9166,144.58,144.55,17.294]
[1728110908756,6.9166,144.58,144.54,6.9184]
[1728110908967,6.9166,144.58,144.55,1.38342622]
[1728110909744,16.0509614,144.59,144.55,1.38342622]
[1728110909954,22.9671614,144.59,144.55,1.38342622]
[1728110911347,16.0509614,144.59,144.55,8.30132622]
[1728110911537,16.0509614,144.59,144.56,8.30062691]
[1728110911743,16.0509614,144.59,144.56,6.9174]
[1728110912337,16.0509614,144.59,144.57,1.38320032]
[1728110914452,16.0509614,144.59,144.56,6.9174]
[1728110916051,16.0509614,144.59,144.55,6.9179]
[1728110916368,6.9165,144.58,144.54,17.2957]
[1728110918165,14.28924337,144.58,144.54,17.2957]
[1728110918848,13.2063,144.58,144.54,17.2957]
[1728110923073,13.2063,144.58,144.55,1.38344771]
[1728110923259,0.8623614,144.59,144.57,7.75979869]
[1728110923461,0.8623614,144.59,144.58,16.0592986]
[1728110924351,0.8623614,144.59,144.58,16.05918717]
[1728110924555,0.8623614,144.59,144.58,44.05439928]
[1728110924755,0.8623614,144.59,144.58,34.91171211]
[1728110924970,0.8623614,144.59,144.58,42.6715108]
[1728110925178,0.8623614,144.59,144.58,72.6715108]
[1728110926281,0.8623614,144.59,144.58,74.05417576]
[1728110926485,0.8623614,144.59,144.58,74.05413516]
[1728110926790,0.8623614,144.59,144.58,72.6715108]
[1728110927275,0.8623614,144.59,144.58,74.05415715]
[1728110927479,0.8623614,144.59,144.58,64.91171211]
[1728110927686,0.8623614,144.59,144.58,72.6715108]
[1728110928057,0.8623614,144.59,144.58,41.13482811]
[1728110928497,0.8623614,144.59,144.58,34.21832811]
[1728110928678,0.8623614,144.59,144.58,30.0]
[1728110929375,0.8623614,144.59,144.57,6.917]
[1728110930281,0.8623614,144.59,144.57,18.64151238]
[1728110930461,0.8623614,144.59,144.57,20.02449277]
[1728110931278,0.8623614,144.59,144.58,14.67629869]
[1728110931786,0.8623614,144.59,144.58,16.31013968]
[1728110933495,0.8623614,144.59,144.58,40.08702368]
[1728110933763,16.0231,144.67,144.63,6.9141]
[1728110933985,16.0231,144.67,144.64,9.14225294]
[1728110934367,16.0231,144.67,144.64,26.42565294]
[1728110934685,16.0231,144.67,144.64,17.2834]
[1728110934870,6.9131,144.66,144.61,24.2023]
[1728110935264,16.0231,144.67,144.61,7.75979869]
[1728110935485,6.9128,144.66,144.61,14.67449869]
[1728110935879,16.0231,144.67,144.62,14.67439869]
[1728110936085,16.0231,144.67,144.63,14.67379869]
[1728110936795,22.9353,144.67,144.63,7.75979869]
[1728110937705,22.9353,144.67,144.63,14.67389869]
[1728110937982,6.9132,144.65,144.61,0.25098]
[1728110938284,6.9128,144.66,144.61,14.67489869]
[1728110938878,6.9134,144.65,144.6,24.2035]
[1728110939294,6.9137,144.64,144.6,17.288]
[1728110941687,6.9137,144.64,144.6,24.2035]
[1728110942690,6.9133,144.65,144.6,24.2035]
[1728110942989,6.9133,144.65,144.6,31.96329869]
[1728110944178,6.9133,144.65,144.6,24.2035]
[1728110944477,6.9133,144.65,144.6,31.96329869]
[1728110944785,6.9133,144.65,144.61,9.14250105]
[1728110944979,6.9133,144.65,144.61,8.29770236]
[1728110945299,6.9133,144.65,144.61,6.915]
[1728110946401,6.9133,144.65,144.62,1.3826987]
[1728110946585,6.9133,144.65,144.61,6.915]
[1728110951206,16.0231,144.67,144.63,6.9137]
[1728110951501,16.0231,144.67,144.64,1.38253783]
[1728110951875,16.0231,144.67,144.62,25.04539869]
[1728110951876,22.9357,144.67,144.62,25.04539869]
[1728110952506,22.9357,144.67,144.62,31.95959869]
[1728110955089,16.0231,144.67,144.62,25.04539869]
[1728110955289,6.9129,144.66,144.62,25.04539869]
[1728110955483,22.9357,144.67,144.62,24.1999]
[1728110955703,6.9131,144.66,144.62,17.2856]
[1728110955909,6.9133,144.65,144.61,7.75979869]
[1728110956085,6.9133,144.65,144.59,17.2896]
[1728110956287,6.9133,144.65,144.6,14.92627869]
[1728110957007,6.9133,144.65,144.61,6.915]
[1728110957210,6.9133,144.65,144.62,1.38268539]
[1728110958316,6.9128,144.66,144.62,1.38268539]
[1728110959109,6.9128,144.66,144.61,6.915]
[1728110959283,6.9128,144.66,144.62,1.38263621]
[1728110960007,6.9128,144.66,144.61,14.67479869]
[1728110960324,6.9128,144.66,144.61,7.75979869]
[1728110960496,22.9354,144.67,144.62,16.0567355]
[1728110961210,22.9354,144.67,144.62,14.67409869]
[1728110961984,22.9354,144.67,144.62,6.9143]
[1728110963015,6.9128,144.66,144.61,25.04679869]
[1728110963515,6.9128,144.66,144.61,31.96169869]
[1728110966616,6.9132,144.65,144.61,31.96169869]
[1728110966911,6.9147,144.62,144.58,24.2073]
[1728110967294,1.08294337,144.64,144.58,24.2073]
[1728110967495,6.9142,144.63,144.58,24.2073]
[1728110967702,1.08294337,144.64,144.55,17.2944]
[1728110967909,6.9147,144.62,144.57,7.75979869]
[1728110968113,6.9143,144.63,144.58,6.9164]
[1728110968290,6.9143,144.63,144.58,10.87460959]
[1728110969403,6.9147,144.62,144.58,10.87460959]
[1728110971798,6.9143,144.63,144.58,10.87460959]
[1728110972309,6.9143,144.63,144.58,6.9164]
[1728110972503,6.9143,144.63,144.58,10.87698919]
[1728110972702,6.1164,144.65,144.58,3.96058919]
[1728110973018,6.1164,144.65,144.57,25.05179869]
[1728110973019,6.9147,144.62,144.57,31.96839869]
[1728110973201,6.9147,144.62,144.58,36.9164]
[1728110973410,6.1164,144.65,144.58,36.9164]
[1728110973611,6.9142,144.63,144.58,36.9164]
[1728110973803,6.9156,144.6,144.58,30.0]
[1728110973994,6.9156,144.6,144.56,6.9171]
[1728110974196,6.9156,144.6,144.55,10.87916114]
[1728110974398,6.9156,144.6,144.55,40.87916114]
[1728110974619,6.9156,144.6,144.56,3.96126114]
[1728110974829,16.43304337,144.62,144.56,3.96126114]
[1728110974830,6.9161,144.59,144.56,3.96126114]
[1728110975114,6.9161,144.59,144.55,30.0]
[1728110975420,6.9161,144.59,144.54,24.2141]
[1728110976405,6.9161,144.59,144.54,17.2958]
[1728110976708,13.0403,144.6,144.56,6.9174]
[1728110979922,13.0403,144.6,144.55,6.9179]
[1728110983130,7.99914337,144.59,144.55,6.9179]
[1728110983926,7.99914337,144.59,144.54,17.2958]
[1728110984104,7.99914337,144.59,144.54,24.2142]
[1728110984303,7.99914337,144.59,144.54,28.16760395]
[1728110984503,7.99914337,144.59,144.54,24.2142]
[1728110984704,6.9162,144.59,144.54,24.2142]
[1728110987912,6.917,144.58,144.54,17.2958]
[1728110988115,6.917,144.57,144.54,17.2958]
[1728110988720,6.917,144.57,144.52,14.67909869]
[1728110989312,17.44944337,144.58,144.51,25.05889869]
[1728110989511,17.44944337,144.58,144.52,30.0]
[1728110989512,6.9176,144.56,144.52,30.0]
[1728110990633,6.9185,144.54,144.52,30.0]
[1728110990840,6.9186,144.54,144.52,30.0]
[1728110991332,6.9186,144.54,144.49,6.9207]
[1728110991534,6.9186,144.54,144.5,31.38389172]
[1728110991827,6.551,144.55,144.5,55.05999869]
[1728110992032,20.0,144.57,144.52,7.75979869]
[1728110992350,26.9175,144.57,144.53,1.38362043]
[1728110992708,6.9176,144.56,144.52,14.67909869]
[1728110992929,6.9176,144.56,144.53,1.38362715]
[1728110993722,6.9176,144.56,144.52,6.9193]
[1728110994113,6.9176,144.56,144.52,8.30292464]
[1728110994328,26.9171,144.57,144.52,16.06272333]
[1728110994526,26.9171,144.57,144.52,14.67909869]
[1728110994729,6.9175,144.56,144.52,7.75979869]
[1728110994921,6.9175,144.56,144.51,14.67969869]
[1728110996036,6.9175,144.56,144.52,1.3836431]
[1728110996717,6.9175,144.56,144.51,14.67969869]
[1728111000246,6.9181,144.55,144.51,6.9199]
[1728111000743,6.9189,144.54,144.5,17.3002]
[1728111001548,20.0,144.57,144.52,7.75979869]
[1728111001740,26.9174,144.57,144.53,1.38363652]
[1728111001946,16.3665,144.58,144.53,9.14343521]
[1728111002245,16.3665,144.58,144.55,7.75979869]
[1728111002550,23.2831,144.58,144.54,14.67819869]
[1728111003627,16.3665,144.58,144.53,14.67869869]
[1728111003827,6.9171,144.57,144.52,31.97699869]
[1728111004039,6.9181,144.55,144.51,14.67949869]
[1728111004222,6.9181,144.55,144.52,30.0]
[1728111005146,6.9181,144.55,144.51,14.67949869]
[1728111005544,20.0,144.57,144.51,14.67949869]
[1728111005746,6.9171,144.57,144.53,6.9189]
[1728111005922,6.9171,144.57,144.54,1.38349748]
[1728111006442,6.9171,144.57,144.53,14.67869869]
[1728111006642,6.9171,144.57,144.53,6.9189]
[1728111006842,6.9171,144.57,144.52,14.67909869]
[1728111008532,17.44944337,144.58,144.52,7.75979869]
[1728111008733,6.9176,144.56,144.52,7.75979869]
[1728111009226,6.917,144.57,144.52,16.06274086]
[1728111009425,6.917,144.57,144.52,14.67909869]
[1728111010259,6.9176,144.56,144.52,14.67909869]
[1728111010441,6.9176,144.56,144.52,6.9193]
[1728111010751,6.9176,144.56,144.53,1.38363726]
[1728111011822,16.3665,144.58,144.53,1.38363726]
[1728111012030,16.3665,144.58,144.53,14.67849869]
[1728111012351,6.9171,144.57,144.53,14.67849869]
[1728111012552,16.3665,144.58,144.51,17.2992]
[1728111012745,6.9175,144.56,144.52,16.06263655]
[1728111013442,16.3665,144.58,144.55,7.75979869]
[1728111013634,16.3665,144.58,144.56,1.38332722]
[1728111013846,16.3665,144.58,144.56,17.2936]
[1728111014734,16.3665,144.58,144.55,6.9179]
[1728111015437,6.9161,144.59,144.55,6.9179]
[1728111016052,6.9161,144.59,144.54,14.67809869]
[1728111017136,6.9161,144.59,144.54,6.9183]
[1728111017457,6.9166,144.58,144.54,14.67809869]
[1728111022057,15.6884,144.64,144.55,0.25098]
[1728111022266,6.915,144.62,144.57,6.9168]
[1728111022462,6.915,144.62,144.58,9.1428386]
[1728111024351,6.915,144.62,144.58,7.75979869]
[1728111024751,6.915,144.62,144.59,1.38305726]
[1728111025139,6.915,144.62,144.57,14.67659869]
[1728111025339,6.915,144.62,144.58,1.38305823]
[1728111026442,6.9142,144.63,144.58,9.14285692]
[1728111026855,6.9142,144.63,144.58,16.05925692]
[1728111027070,6.9142,144.63,144.58,14.67619869]
[1728111027950,6.9142,144.63,144.59,1.38297426]
[1728111029163,6.9142,144.63,144.58,14.67619869]
[1728111029350,6.9142,144.63,144.59,1.38297526]
[1728111029850,6.9142,144.63,144.58,14.67619869]
[1728111034258,6.9147,144.62,144.58,6.9164]
[1728111034465,1.08294337,144.63,144.57,25.05159869]
[1728111034769,6.9161,144.59,144.55,14.67779869]
[1728111035056,6.9161,144.59,144.56,30.0]
[1728111036454,6.9161,144.59,144.54,24.2142]
[1728111037384,6.9161,144.59,144.54,31.97399869]
[1728111038672,6.9156,144.6,144.55,16.06094579]
[1728111039178,6.9156,144.6,144.55,14.67759869]
[1728111039786,6.9156,144.6,144.56,1.38324375]
[1728111040267,6.9156,144.6,144.55,14.67759869]
[1728111041359,6.9156,144.6,144.56,9.14305074]
[1728111041868,6.9156,144.6,144.56,7.75979869]
[1728111043980,6.9156,144.6,144.55,14.67759869]
[1728111045485,6.9156,144.6,144.56,1.38325424]
[1728111045860,6.9156,144.6,144.55,14.67759869]
[1728111046060,6.9156,144.6,144.56,7.75979869]
[1728111048088,43.776884,144.63,144.56,7.75979869]
[1728111048261,6.9161,144.59,144.56,7.75979869]
[1728111048654,43.776884,144.63,144.56,7.75979869]
[1728111048863,6.9157,144.6,144.56,7.75979869]
[1728111051787,6.9161,144.59,144.55,14.67759869]
[1728111052483,6.9161,144.59,144.55,7.75979869]
[1728111052678,6.9161,144.59,144.54,31.97369869]
[1728111058967,6.9161,144.59,144.55,1.38341758]
[1728111059689,6.9157,144.6,144.55,16.06101627]
[1728111059905,6.9157,144.6,144.56,7.75979869]
[1728111060788,6.9157,144.6,144.55,8.30121758]
[1728111060971,6.9157,144.6,144.55,16.06101627]
[1728111062487,6.9157,144.6,144.55,14.67759869]
[1728111063185,6.9157,144.6,144.55,18.63651335]
[1728111063392,1.08294337,144.59,144.55,3.95891466]
[1728111063606,6.9164,144.59,144.55,3.95891466]
[1728111064700,20.0,144.6,144.54,17.2959]
[1728111064901,1.08294337,144.59,144.54,21.25552514]
[1728111065390,6.917,144.57,144.52,14.67919869]
[1728111065586,8.00054337,144.56,144.53,30.0]
[1728111065793,6.918,144.55,144.53,30.0]
[1728111066181,6.918,144.55,144.51,31.97889869]
[1728111069704,1.08294337,144.58,144.51,25.05899869]
[1728111069911,6.9185,144.54,144.5,14.68009869]
[1728111070119,6.9185,144.54,144.5,6.9203]
[1728111070306,6.9185,144.54,144.49,18.63822497]
[1728111070608,6.9185,144.54,144.49,14.68049869]
[1728111073924,33.4495,144.59,144.48,17.3027]
[1728111073925,20.0,144.58,144.53,7.75979869]
[1728111074107,6.9166,144.58,144.55,7.75979869]
[1728111074311,23.0748,144.59,144.55,7.75979869]
[1728111074613,23.0748,144.59,144.54,7.75979869]
[1728111074614,6.917,144.58,144.54,7.75979869]
[1728111074810,16.1587,144.59,144.52,31.97699869]
[1728111075113,6.9181,144.55,144.5,14.67979869]
[1728111075723,6.9185,144.54,144.5,14.67979869]
[1728111076317,6.9185,144.54,144.5,16.06366273]
[1728111076515,6.9181,144.55,144.5,16.06366273]
[1728111076702,6.9181,144.55,144.5,14.67979869]
[1728111076891,61.069384,144.58,144.49,24.2224]
[1728111077087,1.08294337,144.57,144.49,31.98219869]
[1728111077790,6.9191,144.53,144.49,17.3016]
[1728111078618,6.9191,144.53,144.48,14.68109869]
[1728111078818,6.9191,144.53,144.45,34.6124]
[1728111078819,6.9214,144.48,144.46,3.95399642]
[1728111079002,6.9205,144.5,144.44,18.63781776]
[1728111079193,20.0,144.53,144.45,9.14412955]
[1728111079407,6.9199,144.51,144.46,14.68199869]
[1728111080617,1.08294337,144.5,144.46,14.68199869]
[1728111080805,6.9199,144.51,144.46,6.9222]
[1728111081910,6.9204,144.5,144.45,14.68249869]
[1728111085014,6.9204,144.5,144.45,6.9227]
[1728111087717,6.9213,144.48,144.44,17.307]
[1728111087910,6.9213,144.48,144.43,6.9233]
[1728111087911,8.00484337,144.47,144.43,6.9233]
[1728111088518,8.00484337,144.47,144.42,6.9241]
[1728111089830,6.9219,144.47,144.42,14.68389869]
[1728111090006,6.9219,144.47,144.42,16.06850886]
[1728111090208,6.9219,144.47,144.42,14.68389869]
[1728111090411,15.2324,144.49,144.42,6.9241]
[1728111090615,6.9224,144.46,144.41,25.07119869]
[1728111091223,6.9224,144.46,144.41,31.99579869]
[1728111091918,15.2324,144.49,144.42,9.1444459]
[1728111092222,20.0,144.48,144.45,7.75979869]
[1728111093426,20.0,144.48,144.44,14.68299869]
[1728111093826,20.0,144.48,144.45,1.38440795]
[1728111094529,20.0,144.48,144.44,14.68299869]
[1728111095931,20.0,144.48,144.43,24.2323]
[1728111096237,6.9223,144.46,144.43,17.3087]
[1728111096812,6.9223,144.46,144.42,6.9241]
[1728111098523,6.9223,144.46,144.42,8.30869918]
[1728111098826,20.0,144.48,144.42,8.30869918]
[1728111099136,6.9219,144.47,144.42,8.30869918]
[1728111099334,6.9219,144.47,144.42,6.9241]
[1728111100430,6.9228,144.45,144.4,17.3126]
[1728111100636,6.9228,144.45,144.41,14.68439869]
[1728111101138,20.0,144.48,144.43,14.68309869]
[1728111101347,26.9214,144.48,144.44,1.38444019]
[1728111101843,26.9214,144.48,144.43,14.68309869]
[1728111102139,6.9219,144.47,144.43,14.68309869]
[1728111102340,6.9219,144.47,144.43,7.75979869]
[1728111103343,6.9219,144.47,144.43,9.14439356]
[1728111104042,20.0,144.48,144.43,16.06799356]
[1728111104243,6.9205,144.5,144.45,7.75979869]
[1728111104431,6.9205,144.5,144.46,16.06614203]
[1728111104625,6.9205,144.5,144.47,7.75979869]
[1728111106716,20.0,144.51,144.44,24.2307]
[1728111107021,20.0,144.51,144.44,31.99049869]
[1728111107924,6.921,144.49,144.44,31.99049869]
[1728111108126,20.0,144.51,144.44,24.2307]
[1728111108346,6.9215,144.48,144.44,24.2307]
[1728111109154,6.9215,144.48,144.44,25.61507971]
[1728111110035,6.9215,144.48,144.44,24.2307]
[1728111113535,6.9219,144.47,144.43,14.68339869]
[1728111113755,8.00534337,144.46,144.42,14.68389869]
[1728111114062,8.00534337,144.46,144.41,31.99569869]
[1728111114560,6.9224,144.46,144.41,31.99569869]
[1728111114857,6.9224,144.46,144.42,1.38461874]
[1728111115358,6.9224,144.46,144.41,31.99569869]
[1728111115563,6.9224,144.46,144.42,1.38466983]
[1728111116467,6.9224,144.46,144.42,9.14446852]
[1728111116759,6.9224,144.46,144.42,16.06856852]
[1728111117537,6.9224,144.46,144.42,14.68389869]
[1728111118563,6.9224,144.46,144.42,16.06847287]
[1728111118741,6.9224,144.46,144.42,14.68389869]
[1728111119250,6.9224,144.46,144.43,1.38457431]
[1728111119455,6.9224,144.46,144.42,14.68389869]
[1728111120956,26.3042,144.48,144.41,17.3112]
[1728111121150,6.9228,144.45,144.41,24.2357]
[1728111122268,6.9228,144.45,144.42,1.38467306]
[1728111122767,6.9228,144.45,144.41,24.2357]
[1728111123066,6.9228,144.45,144.42,1.38467136]
[1728111123243,6.9224,144.46,144.42,9.14447005]
[1728111123443,6.9224,144.46,144.42,16.06847005]